[Event "Titled Tuesday Blitz October 11 Early 2022"]
[White "Chernomordik, Pavel"]
[Black "Manon-og, Ramon Jr."]
[WhiteFideId "2804530"]
[BlackFideId "5200776"]
[WhiteElo "2217"]
[BlackElo "2227"]
[Result "1-0"]
[Round "07"]
[TimeControl "180+1"]
[Date "2022.10.12"]
[WhiteClock "0:00:16"]
[BlackClock "0:00:05"]

1. e4 {[%clk 0:03:00]}  c5 {[%clk 0:02:57]} 2. Nc3 {[%clk 0:03:00]}  d6 {[%clk 0:02:56]} 3. f4 {[%clk 0:02:59]}  Nc6 {[%clk 0:02:55]} 4. Nf3 {[%clk 0:02:58]}  g6 {[%clk 0:02:56]} 5. Bb5 {[%clk 0:02:57]}  Bg7 {[%clk 0:02:57]} 6. O-O {[%clk 0:02:57]}  e6 {[%clk 0:02:57]} 7. Bxc6+ {[%clk 0:02:55]}  bxc6 {[%clk 0:02:57]} 8. d3 {[%clk 0:02:55]}  Ne7 {[%clk 0:02:57]} 9. Be3 {[%clk 0:02:53]}  O-O {[%clk 0:02:57]} 10. Bf2 {[%clk 0:02:50]}  Rb8 {[%clk 0:02:57]} 11. Rb1 {[%clk 0:02:48]}  Qa5 {[%clk 0:02:45]} 12. Qd2 {[%clk 0:02:44]}  d5 {[%clk 0:02:37]} 13. Nxd5 {[%clk 0:02:43]}  Qd8 {[%clk 0:02:30]} 14. Nc3 {[%clk 0:02:36]}  c4 {[%clk 0:02:27]} 15. Bxa7 {[%clk 0:02:33]}  Ra8 {[%clk 0:02:07]} 16. Bc5 {[%clk 0:02:32]}  cxd3 {[%clk 0:02:03]} 17. cxd3 {[%clk 0:02:30]}  Ba6 {[%clk 0:02:03]} 18. Rfd1 {[%clk 0:02:29]}  Qc7 {[%clk 0:02:02]} 19. d4 {[%clk 0:02:18]}  Rfd8 {[%clk 0:01:56]} 20. Qe3 {[%clk 0:02:14]}  Bh6 {[%clk 0:01:48]} 21. g3 {[%clk 0:02:13]}  Rd7 {[%clk 0:01:43]} 22. Ne5 {[%clk 0:02:12]}  Rdd8 {[%clk 0:01:41]} 23. Bxe7 {[%clk 0:02:06]}  Qxe7 {[%clk 0:01:40]} 24. Nxc6 {[%clk 0:02:06]}  Qc7 {[%clk 0:01:32]} 25. Nxd8 {[%clk 0:02:05]}  Rxd8 {[%clk 0:01:33]} 26. d5 {[%clk 0:02:03]}  exd5 {[%clk 0:01:26]} 27. Nxd5 {[%clk 0:02:01]}  Qa5 {[%clk 0:01:26]} 28. b4 {[%clk 0:01:56]}  Qxa2 {[%clk 0:01:24]} 29. Nc3 {[%clk 0:01:32]}  Rxd1+ {[%clk 0:01:21]} 30. Rxd1 {[%clk 0:01:31]}  Qb2 {[%clk 0:01:06]} 31. Rd8+ {[%clk 0:01:26]}  Bf8 {[%clk 0:01:06]} 32. Qd2 {[%clk 0:01:00]}  Qxb4 {[%clk 0:00:59]} 33. Nd5 {[%clk 0:00:39]}  Qb1+ {[%clk 0:00:49]} 34. Kf2 {[%clk 0:00:34]}  Qf1+ {[%clk 0:00:39]} 35. Ke3 {[%clk 0:00:34]}  Qg1+ {[%clk 0:00:39]} 36. Qf2 {[%clk 0:00:30]}  Qc1+ {[%clk 0:00:28]} 37. Kf3 {[%clk 0:00:29]}  Qa3+ {[%clk 0:00:14]} 38. Qe3 {[%clk 0:00:28]}  Qb2 {[%clk 0:00:11]} 39. Nc3 {[%clk 0:00:19]}  h5 {[%clk 0:00:05]} 40. Qc5 {[%clk 0:00:16]} 1-0


[Site "https://www.chess.com"]

[Event "Titled Tuesday Blitz October 11 Early 2022"]
[White "Colas, Joshua"]
[Black "Beerdsen, Thomas"]
[WhiteFideId "2044447"]
[BlackFideId "1030108"]
[WhiteElo "2347"]
[BlackElo "2567"]
[Result "1-0"]
[Round "07"]
[TimeControl "180+1"]
[Date "2022.10.11"]
[WhiteClock "0:00:15"]
[BlackClock "0:00:30"]

1. Nf3 {[%clk 0:03:00]}  h6 {[%clk 0:02:57]} 2. e4 {[%clk 0:03:00]}  g5 {[%clk 0:02:57]} 3. h3 {[%clk 0:02:59]}  Bg7 {[%clk 0:02:57]} 4. d4 {[%clk 0:02:59]}  c5 {[%clk 0:02:57]} 5. dxc5 {[%clk 0:02:59]}  Na6 {[%clk 0:02:57]} 6. c3 {[%clk 0:02:43]}  Nxc5 {[%clk 0:02:56]} 7. e5 {[%clk 0:02:44]}  d6 {[%clk 0:02:47]} 8. exd6 {[%clk 0:02:44]}  Nf6 {[%clk 0:02:46]} 9. Bb5+ {[%clk 0:02:42]}  Bd7 {[%clk 0:02:46]} 10. Bxd7+ {[%clk 0:02:43]}  Qxd7 {[%clk 0:02:46]} 11. O-O {[%clk 0:02:42]}  O-O-O {[%clk 0:02:42]} 12. b4 {[%clk 0:02:33]}  Nce4 {[%clk 0:02:41]} 13. Qd4 {[%clk 0:02:26]}  Qxd6 {[%clk 0:02:32]} 14. Qxa7 {[%clk 0:02:20]}  g4 {[%clk 0:02:33]} 15. hxg4 {[%clk 0:02:12]}  Nxg4 {[%clk 0:02:34]} 16. Be3 {[%clk 0:01:58]}  Ng5 {[%clk 0:02:26]} 17. Qc5+ {[%clk 0:01:48]}  Qxc5 {[%clk 0:02:24]} 18. Bxc5 {[%clk 0:01:47]}  Nxf3+ {[%clk 0:02:25]} 19. gxf3 {[%clk 0:01:47]}  Ne5 {[%clk 0:02:26]} 20. Kg2 {[%clk 0:01:47]}  Nd3 {[%clk 0:02:24]} 21. Bxe7 {[%clk 0:01:41]}  Rd7 {[%clk 0:02:03]} 22. Bh4 {[%clk 0:01:41]}  Re8 {[%clk 0:01:59]} 23. Na3 {[%clk 0:01:40]}  Bxc3 {[%clk 0:01:56]} 24. Rac1 {[%clk 0:01:32]}  Nf4+ {[%clk 0:01:38]} 25. Kh2 {[%clk 0:01:27]}  Ne2 {[%clk 0:01:35]} 26. Nb5 {[%clk 0:01:15]}  Rd3 {[%clk 0:01:26]} 27. Bg3 {[%clk 0:01:03]}  Kd7 {[%clk 0:00:51]} 28. Rcd1 {[%clk 0:00:40]}  Rxd1 {[%clk 0:00:50]} 29. Rxd1+ {[%clk 0:00:41]}  Ke6 {[%clk 0:00:51]} 30. Nc7+ {[%clk 0:00:40]}  Ke7 {[%clk 0:00:50]} 31. Nxe8 {[%clk 0:00:39]}  Kxe8 {[%clk 0:00:50]} 32. b5 {[%clk 0:00:36]}  Ba5 {[%clk 0:00:44]} 33. a4 {[%clk 0:00:28]}  Nc3 {[%clk 0:00:44]} 34. Rd4 {[%clk 0:00:29]}  Ke7 {[%clk 0:00:44]} 35. Kg2 {[%clk 0:00:27]}  Ke6 {[%clk 0:00:44]} 36. Rd6+ {[%clk 0:00:27]}  Kf5 {[%clk 0:00:44]} 37. Rd7 {[%clk 0:00:27]}  Nxa4 {[%clk 0:00:40]} 38. Rxf7+ {[%clk 0:00:27]}  Ke6 {[%clk 0:00:40]} 39. Rxb7 {[%clk 0:00:28]}  Nc5 {[%clk 0:00:40]} 40. Rh7 {[%clk 0:00:27]}  Bd2 {[%clk 0:00:40]} 41. f4 {[%clk 0:00:26]}  Kf5 {[%clk 0:00:40]} 42. Rxh6 {[%clk 0:00:26]}  Nd3 {[%clk 0:00:36]} 43. Rd6 {[%clk 0:00:24]}  Ne1+ {[%clk 0:00:34]} 44. Kf1 {[%clk 0:00:24]}  Bb4 {[%clk 0:00:35]} 45. Rd5+ {[%clk 0:00:20]}  Kg4 {[%clk 0:00:35]} 46. Rg5+ {[%clk 0:00:20]}  Kf3 {[%clk 0:00:36]} 47. b6 {[%clk 0:00:19]}  Nd3 {[%clk 0:00:30]} 48. b7 {[%clk 0:00:16]}  Bd6 {[%clk 0:00:30]} 49. Rd5 {[%clk 0:00:15]} 1-0


[Site "https://www.chess.com"]

[Event "Titled Tuesday Blitz October 11 Early 2022"]
[White "D`Arruda, Ricardo D."]
[Black "Valle Maytin, Luis Enrique"]
[WhiteFideId "100692"]
[BlackFideId "3503666"]
[WhiteElo "2418"]
[BlackElo "2225"]
[Result "1-0"]
[Round "07"]
[TimeControl "180+1"]
[Date "2022.10.12"]
[WhiteClock "0:00:06"]
[BlackClock "0:00:10"]

1. d4 {[%clk 0:02:59]}  Nf6 {[%clk 0:02:54]} 2. Nf3 {[%clk 0:02:59]}  d5 {[%clk 0:02:53]} 3. c4 {[%clk 0:02:58]}  e6 {[%clk 0:02:51]} 4. Nc3 {[%clk 0:02:58]}  Bb4 {[%clk 0:02:51]} 5. e3 {[%clk 0:02:57]}  O-O {[%clk 0:02:50]} 6. Bd3 {[%clk 0:02:56]}  Ne4 {[%clk 0:02:47]} 7. Qc2 {[%clk 0:02:54]}  f5 {[%clk 0:02:46]} 8. O-O {[%clk 0:02:48]}  c6 {[%clk 0:02:46]} 9. Ne5 {[%clk 0:02:46]}  Nd7 {[%clk 0:02:40]} 10. Nxd7 {[%clk 0:02:46]}  Bxd7 {[%clk 0:02:40]} 11. f3 {[%clk 0:02:46]}  Nd6 {[%clk 0:02:38]} 12. Ne2 {[%clk 0:02:36]}  Be8 {[%clk 0:02:36]} 13. b3 {[%clk 0:02:28]}  g5 {[%clk 0:02:23]} 14. Bd2 {[%clk 0:02:26]}  Bxd2 {[%clk 0:02:22]} 15. Qxd2 {[%clk 0:02:27]}  Bg6 {[%clk 0:02:22]} 16. c5 {[%clk 0:02:17]}  Nf7 {[%clk 0:02:16]} 17. f4 {[%clk 0:02:17]}  Bh5 {[%clk 0:02:10]} 18. Ng3 {[%clk 0:02:14]}  Bg6 {[%clk 0:02:09]} 19. b4 {[%clk 0:02:07]}  a6 {[%clk 0:02:06]} 20. a4 {[%clk 0:02:07]}  h5 {[%clk 0:02:05]} 21. fxg5 {[%clk 0:02:02]}  Qxg5 {[%clk 0:02:03]} 22. Ne2 {[%clk 0:01:56]}  Rae8 {[%clk 0:02:02]} 23. Nf4 {[%clk 0:01:55]}  Bh7 {[%clk 0:01:59]} 24. Rf3 {[%clk 0:01:48]}  Kh8 {[%clk 0:01:46]} 25. Rg3 {[%clk 0:01:43]}  Qh6 {[%clk 0:01:46]} 26. Rh3 {[%clk 0:01:43]}  h4 {[%clk 0:01:46]} 27. g3 {[%clk 0:01:43]}  Ng5 {[%clk 0:01:45]} 28. Kg2 {[%clk 0:01:23]}  Nxh3 {[%clk 0:01:44]} 29. Nxh3 {[%clk 0:01:24]}  e5 {[%clk 0:01:36]} 30. dxe5 {[%clk 0:01:22]}  Rxe5 {[%clk 0:01:36]} 31. Nf4 {[%clk 0:01:20]}  Rfe8 {[%clk 0:01:33]} 32. Re1 {[%clk 0:01:18]}  Qg7 {[%clk 0:01:27]} 33. Bc2 {[%clk 0:01:06]}  hxg3 {[%clk 0:01:17]} 34. hxg3 {[%clk 0:01:07]}  Rg8 {[%clk 0:01:17]} 35. Qf2 {[%clk 0:01:06]}  Qe7 {[%clk 0:01:03]} 36. Nd3 {[%clk 0:00:57]}  Re4 {[%clk 0:00:50]} 37. Nf4 {[%clk 0:00:45]}  Rxb4 {[%clk 0:00:47]} 38. Rh1 {[%clk 0:00:46]}  Rg5 {[%clk 0:00:43]} 39. Rh6 {[%clk 0:00:36]}  Rb2 {[%clk 0:00:23]} 40. Kf3 {[%clk 0:00:36]}  Qg7 {[%clk 0:00:21]} 41. Re6 {[%clk 0:00:29]}  Kg8 {[%clk 0:00:17]} 42. Re8+ {[%clk 0:00:25]}  Kf7 {[%clk 0:00:17]} 43. Rc8 {[%clk 0:00:20]}  Rxg3+ {[%clk 0:00:06]} 44. Qxg3 {[%clk 0:00:18]}  Qxg3+ {[%clk 0:00:07]} 45. Kxg3 {[%clk 0:00:19]}  Rxc2 {[%clk 0:00:07]} 46. Rc7+ {[%clk 0:00:19]}  Kg8 {[%clk 0:00:08]} 47. Nh5 {[%clk 0:00:18]}  Bg6 {[%clk 0:00:07]} 48. Nf6+ {[%clk 0:00:17]}  Kh8 {[%clk 0:00:07]} 49. Kf4 {[%clk 0:00:17]}  Rg2 {[%clk 0:00:06]} 50. Rxb7 {[%clk 0:00:16]}  Rg1 {[%clk 0:00:03]} 51. Rb6 {[%clk 0:00:15]}  Rf1+ {[%clk 0:00:03]} 52. Ke5 {[%clk 0:00:13]}  Bf7 {[%clk 0:00:02]} 53. Rxc6 {[%clk 0:00:12]}  Kg7 {[%clk 0:00:03]} 54. Nd7 {[%clk 0:00:06]}  Rc1 {[%clk 0:00:04]} 55. Rc7 {[%clk 0:00:06]}  d4 {[%clk 0:00:03]} 56. exd4 {[%clk 0:00:06]}  Kg6 {[%clk 0:00:03]} 57. Nf8+ {[%clk 0:00:05]}  Kg7 {[%clk 0:00:04]} 58. Ne6+ {[%clk 0:00:05]}  Kg6 {[%clk 0:00:03]} 59. Nf4+ {[%clk 0:00:05]}  Kg5 {[%clk 0:00:03]} 60. Rxf7 {[%clk 0:00:04]}  Re1+ {[%clk 0:00:04]} 61. Kd5 {[%clk 0:00:04]}  Kxf4 {[%clk 0:00:04]} 62. c6 {[%clk 0:00:05]}  Rc1 {[%clk 0:00:04]} 63. c7 {[%clk 0:00:05]}  Rc2 {[%clk 0:00:04]} 64. Kd6 {[%clk 0:00:05]}  Ke3 {[%clk 0:00:04]} 65. Rf8 {[%clk 0:00:05]}  f4 {[%clk 0:00:04]} 66. c8=Q {[%clk 0:00:04]}  Rxc8 {[%clk 0:00:04]} 67. Rxc8 {[%clk 0:00:03]}  Kxd4 {[%clk 0:00:05]} 68. Rf8 {[%clk 0:00:03]}  Ke3 {[%clk 0:00:06]} 69. Kc6 {[%clk 0:00:03]}  f3 {[%clk 0:00:06]} 70. Kb6 {[%clk 0:00:03]}  f2 {[%clk 0:00:07]} 71. Rxf2 {[%clk 0:00:04]}  Kxf2 {[%clk 0:00:07]} 72. Kxa6 {[%clk 0:00:04]}  Ke3 {[%clk 0:00:08]} 73. Kb7 {[%clk 0:00:05]}  Kd4 {[%clk 0:00:09]} 74. a5 {[%clk 0:00:05]}  Kc4 {[%clk 0:00:10]} 75. a6 {[%clk 0:00:06]} 1-0


[Site "https://www.chess.com"]

[Event "Titled Tuesday Blitz October 11 Early 2022"]
[White "Donchenko, Alexander"]
[Black "Krysa, Leandro"]
[WhiteFideId "24603295"]
[BlackFideId "116807"]
[WhiteElo "2572"]
[BlackElo "2486"]
[Result "1/2-1/2"]
[Round "07"]
[TimeControl "180+1"]
[Date "2022.10.11"]
[WhiteClock "0:01:43"]
[BlackClock "0:00:08"]

1. Nf3 {[%clk 0:03:00]}  g6 {[%clk 0:03:00]} 2. g3 {[%clk 0:03:01]}  Bg7 {[%clk 0:02:59]} 3. d4 {[%clk 0:03:02]}  c5 {[%clk 0:02:59]} 4. dxc5 {[%clk 0:02:59]}  Qa5+ {[%clk 0:02:57]} 5. Nbd2 {[%clk 0:02:59]}  Qxc5 {[%clk 0:02:57]} 6. Bg2 {[%clk 0:02:59]}  d6 {[%clk 0:02:57]} 7. O-O {[%clk 0:02:58]}  Nf6 {[%clk 0:02:57]} 8. b3 {[%clk 0:02:55]}  O-O {[%clk 0:02:53]} 9. Bb2 {[%clk 0:02:54]}  Qc7 {[%clk 0:02:51]} 10. c4 {[%clk 0:02:54]}  b6 {[%clk 0:02:50]} 11. e4 {[%clk 0:02:48]}  Bb7 {[%clk 0:02:49]} 12. e5 {[%clk 0:02:49]}  dxe5 {[%clk 0:02:48]} 13. Bxe5 {[%clk 0:02:49]}  Qc8 {[%clk 0:02:48]} 14. Qe2 {[%clk 0:02:48]}  Nc6 {[%clk 0:02:47]} 15. Bc3 {[%clk 0:02:47]}  Rd8 {[%clk 0:02:42]} 16. Rad1 {[%clk 0:02:46]}  Qc7 {[%clk 0:02:31]} 17. Rfe1 {[%clk 0:02:45]}  Rd7 {[%clk 0:02:29]} 18. Ne5 {[%clk 0:02:43]}  Nxe5 {[%clk 0:02:27]} 19. Bxe5 {[%clk 0:02:44]}  Qc8 {[%clk 0:02:27]} 20. Nf3 {[%clk 0:02:34]}  Bc6 {[%clk 0:02:09]} 21. Nd4 {[%clk 0:02:23]}  Bxg2 {[%clk 0:02:06]} 22. Kxg2 {[%clk 0:02:23]}  Qb7+ {[%clk 0:01:56]} 23. Qf3 {[%clk 0:02:18]}  Qxf3+ {[%clk 0:01:55]} 24. Nxf3 {[%clk 0:02:19]}  Rad8 {[%clk 0:01:54]} 25. Rxd7 {[%clk 0:02:19]}  Rxd7 {[%clk 0:01:54]} 26. Kf1 {[%clk 0:02:19]}  e6 {[%clk 0:01:52]} 27. Ke2 {[%clk 0:02:18]}  Ne4 {[%clk 0:01:50]} 28. Ke3 {[%clk 0:02:13]}  Nc3 {[%clk 0:01:07]} 29. Bxc3 {[%clk 0:02:10]}  Bxc3 {[%clk 0:01:05]} 30. Rc1 {[%clk 0:02:11]}  Bb4 {[%clk 0:01:02]} 31. Ke2 {[%clk 0:02:08]}  f5 {[%clk 0:00:59]} 32. Rd1 {[%clk 0:02:03]}  Rxd1 {[%clk 0:00:56]} 33. Kxd1 {[%clk 0:02:04]}  Bc3 {[%clk 0:00:54]} 34. Kc2 {[%clk 0:02:03]}  Bf6 {[%clk 0:00:54]} 35. Kd3 {[%clk 0:02:00]}  e5 {[%clk 0:00:53]} 36. Ne1 {[%clk 0:01:56]}  e4+ {[%clk 0:00:53]} 37. Ke2 {[%clk 0:01:55]}  Kf7 {[%clk 0:00:52]} 38. f3 {[%clk 0:01:52]}  exf3+ {[%clk 0:00:51]} 39. Nxf3 {[%clk 0:01:51]}  Ke6 {[%clk 0:00:51]} 40. Kd3 {[%clk 0:01:50]}  g5 {[%clk 0:00:40]} 41. Nd4+ {[%clk 0:01:47]}  Bxd4 {[%clk 0:00:39]} 42. Kxd4 {[%clk 0:01:48]}  a5 {[%clk 0:00:38]} 43. a3 {[%clk 0:01:45]}  Kd6 {[%clk 0:00:36]} 44. b4 {[%clk 0:01:45]}  axb4 {[%clk 0:00:33]} 45. axb4 {[%clk 0:01:46]}  h5 {[%clk 0:00:31]} 46. h4 {[%clk 0:01:42]}  gxh4 {[%clk 0:00:10]} 47. gxh4 {[%clk 0:01:43]}  Ke6 {[%clk 0:00:11]} 48. c5 {[%clk 0:01:40]}  bxc5+ {[%clk 0:00:09]} 49. bxc5 {[%clk 0:01:40]}  Kd7 {[%clk 0:00:03]} 50. Ke5 {[%clk 0:01:36]}  Kc6 {[%clk 0:00:03]} 51. Kxf5 {[%clk 0:01:37]}  Kxc5 {[%clk 0:00:04]} 52. Kg5 {[%clk 0:01:38]}  Kd6 {[%clk 0:00:04]} 53. Kxh5 {[%clk 0:01:38]}  Ke7 {[%clk 0:00:05]} 54. Kg6 {[%clk 0:01:39]}  Kf8 {[%clk 0:00:06]} 55. Kh7 {[%clk 0:01:40]}  Kf7 {[%clk 0:00:06]} 56. h5 {[%clk 0:01:41]}  Kf8 {[%clk 0:00:07]} 57. h6 {[%clk 0:01:42]}  Kf7 {[%clk 0:00:07]} 58. Kh8 {[%clk 0:01:42]}  Kf8 {[%clk 0:00:08]} 59. h7 {[%clk 0:01:43]}  Kf7 {[%clk 0:00:08]} 1/2-1/2


[Site "https://www.chess.com"]

[Event "Titled Tuesday Blitz October 11 Early 2022"]
[White "Dwilewicz, Katarzyna"]
[Black "Osiecki, Stanislaw"]
[WhiteFideId "1148486"]
[BlackFideId "1102990"]
[WhiteElo "2023"]
[BlackElo "2088"]
[Result "1-0"]
[Round "07"]
[TimeControl "180+1"]
[Date "2022.10.12"]
[WhiteClock "0:01:15"]
[BlackClock "0:00:01"]

1. e4 {[%clk 0:02:58]}  e6 {[%clk 0:02:52]} 2. d4 {[%clk 0:02:55]}  d5 {[%clk 0:02:47]} 3. Nd2 {[%clk 0:02:55]}  c5 {[%clk 0:02:47]} 4. Ngf3 {[%clk 0:02:53]}  cxd4 {[%clk 0:02:46]} 5. Nxd4 {[%clk 0:02:53]}  Nc6 {[%clk 0:02:46]} 6. Bb5 {[%clk 0:02:52]}  Bd7 {[%clk 0:02:46]} 7. Nxc6 {[%clk 0:02:53]}  bxc6 {[%clk 0:02:45]} 8. Bd3 {[%clk 0:02:54]}  d4 {[%clk 0:02:45]} 9. O-O {[%clk 0:02:51]}  e5 {[%clk 0:02:45]} 10. Qh5 {[%clk 0:02:42]}  Qf6 {[%clk 0:02:37]} 11. Nc4 {[%clk 0:02:40]}  Bd6 {[%clk 0:02:31]} 12. Bg5 {[%clk 0:02:34]}  Qe6 {[%clk 0:02:31]} 13. Nxd6+ {[%clk 0:02:30]}  Qxd6 {[%clk 0:02:30]} 14. f4 {[%clk 0:02:30]}  h6 {[%clk 0:02:10]} 15. fxe5 {[%clk 0:02:19]}  Qg6 {[%clk 0:02:09]} 16. Qxg6 {[%clk 0:02:18]}  fxg6 {[%clk 0:02:09]} 17. Bd2 {[%clk 0:02:11]}  Ne7 {[%clk 0:02:08]} 18. Bb4 {[%clk 0:02:09]}  Be6 {[%clk 0:01:55]} 19. Bc5 {[%clk 0:02:07]}  Rd8 {[%clk 0:01:40]} 20. Bxa7 {[%clk 0:02:07]}  Rf8 {[%clk 0:01:27]} 21. Bc5 {[%clk 0:01:59]}  Rxf1+ {[%clk 0:01:21]} 22. Kxf1 {[%clk 0:01:58]}  g5 {[%clk 0:01:19]} 23. g3 {[%clk 0:01:50]}  Ng6 {[%clk 0:01:14]} 24. Bd6 {[%clk 0:01:50]}  Ra8 {[%clk 0:01:10]} 25. a4 {[%clk 0:01:47]}  Kd7 {[%clk 0:01:02]} 26. b4 {[%clk 0:01:46]}  h5 {[%clk 0:00:32]} 27. a5 {[%clk 0:01:45]}  h4 {[%clk 0:00:32]} 28. Kg2 {[%clk 0:01:37]}  h3+ {[%clk 0:00:27]} 29. Kf2 {[%clk 0:01:32]}  Ne7 {[%clk 0:00:26]} 30. Bc5 {[%clk 0:01:28]}  Nc8 {[%clk 0:00:20]} 31. Bxd4 {[%clk 0:01:27]}  Na7 {[%clk 0:00:17]} 32. c4 {[%clk 0:01:20]}  Bg4 {[%clk 0:00:01]} 33. Ke3 {[%clk 0:01:15]} 1-0


[Site "https://www.chess.com"]

[Event "Titled Tuesday Blitz October 11 Early 2022"]
[White "Gabrielian, Artur"]
[Black "Sarana, Alexey"]
[WhiteFideId "4131002"]
[BlackFideId "24133795"]
[WhiteElo "2432"]
[BlackElo "2689"]
[Result "1-0"]
[Round "07"]
[TimeControl "180+1"]
[Date "2022.10.11"]
[WhiteClock "0:00:04"]
[BlackClock "0:00:10"]

1. e4 {[%clk 0:03:00]}  c5 {[%clk 0:03:00]} 2. Nf3 {[%clk 0:03:01]}  d6 {[%clk 0:03:01]} 3. d4 {[%clk 0:03:01]}  cxd4 {[%clk 0:03:02]} 4. Nxd4 {[%clk 0:03:02]}  Nf6 {[%clk 0:03:02]} 5. Nc3 {[%clk 0:03:02]}  a6 {[%clk 0:03:03]} 6. Bd3 {[%clk 0:03:03]}  g6 {[%clk 0:03:02]} 7. O-O {[%clk 0:03:02]}  Bg7 {[%clk 0:03:02]} 8. Kh1 {[%clk 0:03:00]}  O-O {[%clk 0:03:02]} 9. f4 {[%clk 0:03:00]}  Nc6 {[%clk 0:02:59]} 10. Nf3 {[%clk 0:02:59]}  Nb4 {[%clk 0:02:55]} 11. Qe1 {[%clk 0:02:58]}  e6 {[%clk 0:02:49]} 12. a3 {[%clk 0:02:49]}  Nxd3 {[%clk 0:02:48]} 13. cxd3 {[%clk 0:02:50]}  b5 {[%clk 0:02:46]} 14. Qh4 {[%clk 0:02:49]}  Nh5 {[%clk 0:02:45]} 15. Qh3 {[%clk 0:02:41]}  f5 {[%clk 0:02:42]} 16. e5 {[%clk 0:02:26]}  dxe5 {[%clk 0:02:40]} 17. Nxe5 {[%clk 0:02:22]}  Bb7 {[%clk 0:02:37]} 18. Qe3 {[%clk 0:02:16]}  Qd6 {[%clk 0:02:34]} 19. d4 {[%clk 0:01:30]}  Rfd8 {[%clk 0:02:34]} 20. Ne2 {[%clk 0:01:30]}  Rac8 {[%clk 0:02:24]} 21. Bd2 {[%clk 0:01:22]}  Rc2 {[%clk 0:02:19]} 22. Bb4 {[%clk 0:01:07]}  Qd5 {[%clk 0:02:16]} 23. Nf3 {[%clk 0:01:08]}  Nf6 {[%clk 0:02:05]} 24. Nc3 {[%clk 0:01:04]}  Qb3 {[%clk 0:02:04]} 25. Nd2 {[%clk 0:00:56]}  Ng4 {[%clk 0:01:54]} 26. Qe1 {[%clk 0:00:56]}  Bxd4 {[%clk 0:01:31]} 27. h3 {[%clk 0:00:40]}  Ne3 {[%clk 0:01:02]} 28. Rf2 {[%clk 0:00:23]}  Nxg2 {[%clk 0:00:51]} 29. Rxg2 {[%clk 0:00:18]}  Bxg2+ {[%clk 0:00:50]} 30. Kxg2 {[%clk 0:00:15]}  Qxb2 {[%clk 0:00:41]} 31. Ra2 {[%clk 0:00:09]}  Qb3 {[%clk 0:00:19]} 32. Rxc2 {[%clk 0:00:08]}  Qxc2 {[%clk 0:00:20]} 33. Qxe6+ {[%clk 0:00:09]}  Kh8 {[%clk 0:00:20]} 34. Nd5 {[%clk 0:00:09]}  Qa2 {[%clk 0:00:11]} 35. Nc7 {[%clk 0:00:04]}  Qc2 {[%clk 0:00:10]} 36. Qe7 {[%clk 0:00:03]}  Rg8 {[%clk 0:00:08]} 37. Ne6 {[%clk 0:00:03]}  Qc6+ {[%clk 0:00:06]} 38. Kh2 {[%clk 0:00:04]}  a5 {[%clk 0:00:06]} 39. Nxd4 {[%clk 0:00:03]}  Qd5 {[%clk 0:00:04]} 40. Qf6+ {[%clk 0:00:03]}  Rg7 {[%clk 0:00:04]} 41. Bc3 {[%clk 0:00:04]}  Kg8 {[%clk 0:00:04]} 42. Ne6 {[%clk 0:00:03]}  Rd7 {[%clk 0:00:04]} 43. Qh8+ {[%clk 0:00:03]}  Kf7 {[%clk 0:00:05]} 44. Ng5+ {[%clk 0:00:03]}  Ke7 {[%clk 0:00:05]} 45. Qf6+ {[%clk 0:00:03]}  Ke8 {[%clk 0:00:06]} 46. Qh8+ {[%clk 0:00:03]}  Ke7 {[%clk 0:00:06]} 47. Qxh7+ {[%clk 0:00:04]}  Kd8 {[%clk 0:00:07]} 48. Qh8+ {[%clk 0:00:04]}  Kc7 {[%clk 0:00:07]} 49. Qe5+ {[%clk 0:00:05]}  Kb7 {[%clk 0:00:08]} 50. Qxd5+ {[%clk 0:00:05]}  Rxd5 {[%clk 0:00:08]} 51. Ngf3 {[%clk 0:00:05]}  Kb6 {[%clk 0:00:05]} 52. Kg3 {[%clk 0:00:05]}  Rd3 {[%clk 0:00:05]} 53. Bb2 {[%clk 0:00:05]}  Kc5 {[%clk 0:00:04]} 54. Kf2 {[%clk 0:00:05]}  b4 {[%clk 0:00:04]} 55. axb4+ {[%clk 0:00:05]}  Kxb4 {[%clk 0:00:05]} 56. Ke2 {[%clk 0:00:05]}  Rd6 {[%clk 0:00:05]} 57. Be5 {[%clk 0:00:05]}  Rd8 {[%clk 0:00:04]} 58. Nd4 {[%clk 0:00:05]}  Rd7 {[%clk 0:00:04]} 59. Nc6+ {[%clk 0:00:04]}  Kb5 {[%clk 0:00:04]} 60. Nd4+ {[%clk 0:00:05]}  Kb4 {[%clk 0:00:05]} 61. h4 {[%clk 0:00:05]}  a4 {[%clk 0:00:05]} 62. Nc6+ {[%clk 0:00:06]}  Kb5 {[%clk 0:00:06]} 63. Nd4+ {[%clk 0:00:06]}  Kb4 {[%clk 0:00:05]} 64. Kd3 {[%clk 0:00:06]}  a3 {[%clk 0:00:05]} 65. Kc2 {[%clk 0:00:07]}  Rb7 {[%clk 0:00:03]} 66. Nc6+ {[%clk 0:00:06]}  Kc5 {[%clk 0:00:03]} 67. Nd4 {[%clk 0:00:06]}  Rh7 {[%clk 0:00:02]} 68. N4b3+ {[%clk 0:00:06]}  Kd5 {[%clk 0:00:02]} 69. Bf6 {[%clk 0:00:06]}  Rc7+ {[%clk 0:00:02]} 70. Kb1 {[%clk 0:00:06]}  Rc6 {[%clk 0:00:02]} 71. Bg5 {[%clk 0:00:07]}  Ra6 {[%clk 0:00:03]} 72. Ka2 {[%clk 0:00:07]}  Ra8 {[%clk 0:00:04]} 73. Nb1 {[%clk 0:00:06]}  Kc4 {[%clk 0:00:03]} 74. Nxa3+ {[%clk 0:00:06]}  Kc3 {[%clk 0:00:03]} 75. Bf6+ {[%clk 0:00:06]}  Kb4 {[%clk 0:00:03]} 76. Be7+ {[%clk 0:00:06]}  Kc3 {[%clk 0:00:04]} 77. Nc5 {[%clk 0:00:06]}  Ra7 {[%clk 0:00:03]} 78. Bf6+ {[%clk 0:00:06]}  Kb4 {[%clk 0:00:03]} 79. Nd3+ {[%clk 0:00:06]}  Ka4 {[%clk 0:00:03]} 80. Nb2+ {[%clk 0:00:06]}  Ka5 {[%clk 0:00:03]} 81. Kb3 {[%clk 0:00:05]}  Rb7+ {[%clk 0:00:03]} 82. Kc2 {[%clk 0:00:06]}  Rf7 {[%clk 0:00:03]} 83. Nac4+ {[%clk 0:00:06]}  Kb4 {[%clk 0:00:03]} 84. Bg5 {[%clk 0:00:07]}  Rc7 {[%clk 0:00:03]} 85. Kd3 {[%clk 0:00:07]}  Rc6 {[%clk 0:00:03]} 86. Kd4 {[%clk 0:00:07]}  Kb3 {[%clk 0:00:02]} 87. Kd5 {[%clk 0:00:08]}  Ra6 {[%clk 0:00:02]} 88. Ke5 {[%clk 0:00:07]}  Kc3 {[%clk 0:00:03]} 89. Kd5 {[%clk 0:00:07]}  Kb3 {[%clk 0:00:03]} 90. Nd3 {[%clk 0:00:06]}  Kc3 {[%clk 0:00:03]} 91. Nc5 {[%clk 0:00:07]}  Ra8 {[%clk 0:00:03]} 92. Ne5 {[%clk 0:00:07]}  Rg8 {[%clk 0:00:03]} 93. Ke6 {[%clk 0:00:07]}  Kd4 {[%clk 0:00:04]} 94. Ncd7 {[%clk 0:00:07]}  Ke4 {[%clk 0:00:04]} 95. Kf7 {[%clk 0:00:07]}  Rh8 {[%clk 0:00:04]} 96. Kxg6 {[%clk 0:00:08]}  Rxh4 {[%clk 0:00:04]} 97. Bxh4 {[%clk 0:00:07]}  Kxf4 {[%clk 0:00:05]} 98. Bg5+ {[%clk 0:00:07]}  Ke4 {[%clk 0:00:05]} 99. Nf7 {[%clk 0:00:07]}  f4 {[%clk 0:00:06]} 100. Nd6+ {[%clk 0:00:07]}  Kd5 {[%clk 0:00:06]} 101. Bxf4 {[%clk 0:00:07]}  Ke6 {[%clk 0:00:06]} 102. Nb6 {[%clk 0:00:06]}  Ke7 {[%clk 0:00:06]} 103. Ne4 {[%clk 0:00:06]}  Ke6 {[%clk 0:00:07]} 104. Nc5+ {[%clk 0:00:06]}  Ke7 {[%clk 0:00:07]} 105. Be5 {[%clk 0:00:07]}  Kd8 {[%clk 0:00:07]} 106. Nd5 {[%clk 0:00:06]}  Kc8 {[%clk 0:00:07]} 107. Kf5 {[%clk 0:00:05]}  Kd8 {[%clk 0:00:08]} 108. Ke6 {[%clk 0:00:05]}  Kc8 {[%clk 0:00:08]} 109. Ne4 {[%clk 0:00:05]}  Kb7 {[%clk 0:00:09]} 110. Kd7 {[%clk 0:00:04]}  Ka6 {[%clk 0:00:09]} 111. Nec3 {[%clk 0:00:04]}  Kb7 {[%clk 0:00:09]} 112. Bc7 {[%clk 0:00:03]}  Ka6 {[%clk 0:00:09]} 113. Kc6 {[%clk 0:00:04]}  Ka7 {[%clk 0:00:10]} 114. Bb6+ {[%clk 0:00:04]}  Kb8 {[%clk 0:00:10]} 115. Nc7 {[%clk 0:00:04]}  Kc8 {[%clk 0:00:10]} 116. N7b5 {[%clk 0:00:04]}  Kb8 {[%clk 0:00:10]} 117. Nd5 {[%clk 0:00:05]}  Ka8 {[%clk 0:00:10]} 118. Ndc7+ {[%clk 0:00:04]}  Kb8 {[%clk 0:00:10]} 119. Na6+ {[%clk 0:00:04]}  Ka8 {[%clk 0:00:10]} 120. Nbc7# {[%clk 0:00:04]} 1-0


[Site "https://www.chess.com"]